[Event "84th ESP-ch 2019"]
[Site "Marbella"]
[Date "2019.11.23"]
[Round "8.11"]
[White "Espinosa Aranda, Angel"]
[Black "Garcia Ramos, Daniel"]
[Result "0-1"]
[ECO "A47"]
[WhiteElo "2511"]
[BlackElo "2350"]
[Annotator "ChessBase"]
[PlyCount "102"]
[EventDate "2019.11.16"]
[EventType "swiss"]
[EventCountry "ESP"]
[SourceTitle "playchess.com"]
[Source "ChessBase"]
[SourceQuality "1"]
[TimeControl "5400+30"]

1. d4 {[%emt 0:00:00]} Nf6 {[%emt 0:00:00]} 2. Nf3 {[%emt 0:00:00]} b6 {[%emt 0:00:00]} 3. g3 {[%emt 0:00:18]} Bb7 {[%emt 0:00:04]} 4. Bg2 {[%emt 0:00:07]} g6 {[%emt 0:00:24]} 5. O-O {[%emt 0:00:07]} Bg7 {[%emt 0:00:04]} 6. c4 {[%emt 0:00:04]} O-O {[%emt 0:00:43]} 7. d5 {[%emt 0:00:04]} Na6 {[%emt 0:05:47]} 8. Nc3 {[%emt 0:00:07]} Nc5 {[%emt 0:00:34]} 9. Nd4 {[%emt 0:01:02]} e5 {[%emt 0:04:30]} 10. Nb3 {[%emt 0:00:25]} Nxb3 {[%emt 0:13:44]} 11. axb3 {[%emt 0:00:28]} d6 {[%emt 0:02:01]} 12. b4 {[%emt 0:03:02]} Nd7 {[%emt 0:03:18]} 13. e4 {[%emt 0:01:28]} f5 {[%emt 0:05:47]} 14. exf5 {[%emt 0:01:49]} gxf5 {[%emt 0:00:22]} 15. Qh5 {[%emt 0:00:05]} a6 {[%emt 0:02:48]} 16. Bh3 {[%emt 0:08:59]} Qe8 {[%emt 0:10:43]} 17. Qxe8 {[%emt 0:13:52]} Raxe8 {[%emt 0:00:05]} 18. f3 {[%emt 0:00:12]} Bc8 {[%emt 0:11:12]} 19. Be3 {[%emt 0:03:13]} Nf6 {[%emt 0:08:45]} 20. Rfe1 {[%emt 0:06:32]} e4 {[%emt 0:04:33]} 21. f4 {[%emt 0:02:39]} Kf7 {[%emt 0:02:02]} 22. Ne2 {[%emt 0:09:03]} Kg6 {[%emt 0:01:40]} 23. Nd4 {[%emt 0:03:15]} h5 {[%emt 0:00:10]} 24. Nc6 {[%emt 0:10:26]} Bb7 {[%emt 0:04:04]} 25. Bd4 {[%emt 0:05:14]} Rh8 {[%emt 0:04:05]} 26. Ra3 {[%emt 0:01:15]} Rh7 {[%emt 0:04:49]} 27. Kg2 {[%emt 0:00:27]} Bh8 {[%emt 0:03:29]} 28. Bf2 {[%emt 0:00:44]} Ng4 {[%emt 0:02:47]} 29. Bd4 {[%emt 0:08:59]} Bxc6 {[%emt 0:01:44]} 30. Bxh8 {[%emt 0:00:04]} Bxd5 {[%emt 0:00:07]} 31. cxd5 {[%emt 0:00:10]} Rexh8 {[%emt 0:01:33]} 32. Rxa6 {[%emt 0:00:07]} Nf6 {[%emt 0:01:34]} 33. Rd1 {[%emt 0:00:05]} h4 {[%emt 0:00:46]} 34. Ra3 {[%emt 0:00:04]} Nh5 {[%emt 0:00:21]} 35. g4 {[%emt 0:05:06]} Nxf4+ {[%emt 0:00:27]} 36. Kf1 {[%emt 0:00:02]} fxg4 {[%emt 0:00:52]} 37. Bxg4 {[%emt 0:00:04]} Rf8 {[%emt 0:00:12]} 38. Kg1 {[%emt 0:00:10]} Re7 {[%emt 0:00:36]} 39. Re3 {[%emt 0:00:17]} Re5 {[%emt 0:00:19]} 40. Rd4 {[%emt 0:00:20]} Rfe8 {[%emt 0:01:03]} 41. h3 {[%emt 0:00:47]} Nxd5 {[%emt 0:00:19]} 42. Re1 {[%emt 0:00:05]} Nf6 {[%emt 0:00:16]} 43. Be2 {[%emt 0:00:04]} Rg5+ {[%emt 0:00:27]} 44. Kh2 {[%emt 0:00:13]} Kf5 {[%emt 0:00:51]} 45. b5 {[%emt 0:00:29]} Ke5 {[%emt 0:00:22]} 46. Rc4 {[%emt 0:00:05]} Re7 {[%emt 0:00:23]} 47. Bf3 {[%emt 0:00:10]} d5 {[%emt 0:00:15]} 48. Rc6 {[%emt 0:00:03]} Rg3 {[%emt 0:00:27]} 49. Bh1 {[%emt 0:00:20]} Rb3 {[%emt 0:01:25]} 50. Re2 {[%emt 0:00:04]} Nh5 {[%emt 0:00:44]} 51. Rf2 {[%emt 0:00:51]} Nf4 {[%emt 0:00:24]} 0-1

[Event "84th ESP-ch 2019"]
[Site "Marbella"]
[Date "2019.11.23"]
[Round "8.12"]
[White "Alsina Leal, Daniel"]
[Black "Mingarro Carceller, Sergi"]
[Result "0-1"]
[ECO "B23"]
[WhiteElo "2467"]
[BlackElo "2329"]
[Annotator "ChessBase"]
[PlyCount "96"]
[EventDate "2019.11.16"]
[EventType "swiss"]
[EventCountry "ESP"]
[SourceTitle "playchess.com"]
[Source "ChessBase"]
[SourceQuality "1"]
[TimeControl "5400+30"]

1. e4 {[%emt 0:00:00]} c5 {[%emt 0:00:28]} 2. Nc3 {[%emt 0:00:00]} d6 {[%emt 0:00:28]} 3. d4 {[%emt 0:00:00]} cxd4 {[%emt 0:00:47]} 4. Qxd4 {[%emt 0:00:00]} Nc6 {[%emt 0:00:50]} 5. Qd2 {[%emt 0:00:05]} g6 {[%emt 0:00:41]} 6. b3 {[%emt 0:00:16]} Bh6 {[%emt 0:00:31]} 7. f4 {[%emt 0:00:19]} e5 {[%emt 0:03:12]} 8. g3 {[%emt 0:31:53]} Nf6 {[%emt 0:03:51]} 9. Bb2 {[%emt 0:01:59]} O-O {[%emt 0:02:44]} 10. O-O-O {[%emt 0:00:21]} a5 {[%emt 0:01:17]} 11. a4 {[%emt 0:00:55]} Be6 {[%emt 0:07:26]} 12. Kb1 {[%emt 0:05:01]} Rc8 {[%emt 0:09:30]} 13. Bg2 {[%emt 0:25:35]} Qb6 {[%emt 0:16:59]} 14. Nf3 {[%emt 0:07:11]} Rfd8 {[%emt 0:10:49]} 15. Qe2 {[%emt 0:01:31]} Nb4 {[%emt 0:08:13]} 16. fxe5 {[%emt 0:07:58]} Nxc2 {[%emt 0:03:14]} 17. Qxc2 {[%emt 0:00:57]} Bxb3 {[%emt 0:00:31]} 18. Qd3 {[%emt 0:03:05]} Bxd1 {[%emt 0:09:48]} 19. Rxd1 {[%emt 0:00:53]} dxe5 {[%emt 0:02:23]} 20. Nd5 {[%emt 0:06:49]} Nxd5 {[%emt 0:02:25]} 21. exd5 {[%emt 0:00:04]} Bg7 {[%emt 0:00:34]} 22. Qb5 {[%emt 0:01:29]} Qxb5 {[%emt 0:02:03]} 23. axb5 {[%emt 0:00:07]} Rc5 {[%emt 0:00:03]} 24. Nxe5 {[%emt 0:01:24]} Rxb5 {[%emt 0:00:14]} 25. Nd3 {[%emt 0:00:08]} Re8 {[%emt 0:05:49]} 26. Rd2 {[%emt 0:00:45]} Re3 {[%emt 0:00:54]} 27. Nc1 {[%emt 0:00:46]} Kf8 {[%emt 0:02:23]} 28. Ka2 {[%emt 0:00:35]} Bxb2 {[%emt 0:00:20]} 29. Rxb2 {[%emt 0:00:05]} Rxb2+ {[%emt 0:00:05]} 30. Kxb2 {[%emt 0:00:03]} Ke7 {[%emt 0:00:21]} 31. Kc2 {[%emt 0:01:06]} Kd6 {[%emt 0:00:14]} 32. Kd2 {[%emt 0:00:08]} Ra3 {[%emt 0:00:07]} 33. Ne2 {[%emt 0:00:55]} Ra2+ {[%emt 0:00:42]} 34. Ke3 {[%emt 0:01:14]} b5 {[%emt 0:00:14]} 35. Be4 {[%emt 0:00:37]} b4 {[%emt 0:01:34]} 36. h4 {[%emt 0:01:47]} Ke5 {[%emt 0:01:09]} 37. Nc1 {[%emt 0:01:12]} b3 {[%emt 0:01:28]} 38. Nd3+ {[%emt 0:00:48]} Kd6 {[%emt 0:00:07]} 39. Nf4 {[%emt 0:00:48]} a4 {[%emt 0:01:44]} 40. Kd4 {[%emt 0:00:38]} f5 {[%emt 0:02:07]} 41. Bd3 {[%emt 0:00:21]} b2 {[%emt 0:00:56]} 42. Kc3 {[%emt 0:00:40]} a3 {[%emt 0:00:12]} 43. Kb3 {[%emt 0:00:30]} Ra1 {[%emt 0:00:29]} 44. h5 {[%emt 0:00:29]} g5 {[%emt 0:00:52]} 45. Ne6 {[%emt 0:00:23]} b1=Q+ {[%emt 0:00:30]} 46. Bxb1 {[%emt 0:00:03]} Rxb1+ {[%emt 0:00:03]} 47. Ka2 {[%emt 0:00:34]} Rb2+ {[%emt 0:00:13]} 48. Kxa3 {[%emt 0:00:35]} Rg2 {[%emt 0:00:06]} 0-1

[Event "84th ESP-ch 2019"]
[Site "Marbella"]
[Date "2019.11.23"]
[Round "8.13"]
[White "Huerga Leache, Mikel"]
[Black "Jimenez Ruano, Adrian"]
[Result "1-0"]
[ECO "E06"]
[WhiteElo "2456"]
[BlackElo "2269"]
[Annotator "ChessBase"]
[PlyCount "115"]
[EventDate "2019.11.16"]
[EventType "swiss"]
[EventCountry "ESP"]
[SourceTitle "playchess.com"]
[Source "ChessBase"]
[SourceQuality "1"]
[TimeControl "5400+30"]

1. Nf3 {[%emt 0:00:41]} Nf6 {[%emt 0:00:00]} 2. c4 {[%emt 0:00:09]} e6 {[%emt 0:00:00]} 3. d4 {[%emt 0:00:14]} d5 {[%emt 0:00:00]} 4. g3 {[%emt 0:00:07]} Be7 {[%emt 0:00:02]} 5. Bg2 {[%emt 0:00:04]} O-O {[%emt 0:00:07]} 6. Nc3 {[%emt 0:00:52]} b6 {[%emt 0:02:22]} 7. O-O {[%emt 0:03:34]} Bb7 {[%emt 0:00:25]} 8. cxd5 {[%emt 0:02:59]} exd5 {[%emt 0:00:15]} 9. Ne5 {[%emt 0:01:35]} Re8 {[%emt 0:03:53]} 10. Qb3 {[%emt 0:03:21]} Na6 {[%emt 0:10:34]} 11. e4 {[%emt 0:07:55]} c6 {[%emt 0:03:01]} 12. exd5 {[%emt 0:12:16]} cxd5 {[%emt 0:00:34]} 13. Nb5 {[%emt 0:07:48]} Nd7 {[%emt 0:22:50]} 14. Nd3 {[%emt 0:05:20]} Nf6 {[%emt 0:09:50]} 15. Bf4 {[%emt 0:00:30]} Qd7 {[%emt 0:06:10]} 16. Rfe1 {[%emt 0:06:22]} h6 {[%emt 0:06:36]} 17. Ne5 {[%emt 0:01:44]} Qf5 {[%emt 0:01:26]} 18. Bf1 {[%emt 0:00:37]} Bb4 {[%emt 0:02:19]} 19. Rec1 {[%emt 0:00:53]} Bf8 {[%emt 0:01:21]} 20. a3 {[%emt 0:08:09]} g5 {[%emt 0:06:10]} 21. Be3 {[%emt 0:00:58]} Qe6 {[%emt 0:06:44]} 22. Qa4 {[%emt 0:04:38]} Rec8 {[%emt 0:07:49]} 23. Rxc8 {[%emt 0:03:50]} Qxc8 {[%emt 0:00:03]} 24. Rc1 {[%emt 0:00:28]} Qe8 {[%emt 0:00:37]} 25. Bh3 {[%emt 0:01:40]} Ne4 {[%emt 0:03:12]} 26. Qb3 {[%emt 0:04:48]} Nd6 {[%emt 0:00:20]} 27. Bd7 {[%emt 0:01:31]} Qd8 {[%emt 0:01:52]} 28. Bc6 {[%emt 0:00:59]} Bxc6 {[%emt 0:03:43]} 29. Nxc6 {[%emt 0:00:07]} Qf6 {[%emt 0:00:24]} 30. Qxd5 {[%emt 0:02:25]} Nxb5 {[%emt 0:00:01]} 31. Qxb5 {[%emt 0:00:16]} Nc7 {[%emt 0:00:09]} 32. Qc4 {[%emt 0:01:19]} Bd6 33. Ne5 {[%emt 0:00:56]} Qe6 {[%emt 0:01:35]} 34. Qxe6 {[%emt 0:01:13]} Nxe6 {[%emt 0:00:22]} 35. Nc4 {[%emt 0:01:55]} Bf8 {[%emt 0:01:18]} 36. d5 {[%emt 0:01:20]} Ng7 {[%emt 0:00:02]} 37. g4 {[%emt 0:00:18]} Rd8 {[%emt 0:00:09]} 38. Rd1 {[%emt 0:00:22]} Ne8 {[%emt 0:00:14]} 39. f3 {[%emt 0:00:30]} Nf6 {[%emt 0:00:59]} 40. d6 {[%emt 0:00:02]} b5 {[%emt 0:01:10]} 41. Na5 {[%emt 0:00:21]} Bxd6 {[%emt 0:00:15]} 42. Kg2 {[%emt 0:00:57]} Bc7 {[%emt 0:00:47]} 43. Rxd8+ {[%emt 0:00:07]} Bxd8 {[%emt 0:00:01]} 44. Nc6 {[%emt 0:00:11]} Bb6 {[%emt 0:00:47]} 45. Bxb6 {[%emt 0:01:09]} axb6 {[%emt 0:00:01]} 46. Nd4 {[%emt 0:00:17]} Nd5 {[%emt 0:00:01]} 47. Nxb5 {[%emt 0:00:16]} Ne3+ {[%emt 0:00:07]} 48. Kg3 {[%emt 0:00:45]} Kf8 {[%emt 0:00:41]} 49. Nd6 {[%emt 0:00:23]} Nd1 {[%emt 0:02:10]} 50. b3 {[%emt 0:01:14]} Kg7 {[%emt 0:00:20]} 51. a4 {[%emt 0:01:52]} Nc3 {[%emt 0:00:39]} 52. h4 {[%emt 0:00:30]} gxh4+ {[%emt 0:00:58]} 53. Kxh4 {[%emt 0:00:06]} Ne2 {[%emt 0:00:16]} 54. b4 {[%emt 0:00:33]} Kf6 {[%emt 0:00:44]} 55. a5 {[%emt 0:00:12]} bxa5 {[%emt 0:00:00]} 56. bxa5 {[%emt 0:00:03]} Nd4 {[%emt 0:00:32]} 57. a6 {[%emt 0:01:17]} Ne6 {[%emt 0:00:51]} 58. a7 {[%emt 0:01:07]} 1-0

[Event "84th ESP-ch 2019"]
[Site "Marbella"]
[Date "2019.11.23"]
[Round "8.15"]
[White "Valmana Canto, Jaime"]
[Black "Kolotilina, Liudmila"]
[Result "1-0"]
[ECO "A11"]
[WhiteElo "2416"]
[BlackElo "2242"]
[Annotator "ChessBase"]
[PlyCount "75"]
[EventDate "2019.11.16"]
[EventType "swiss"]
[EventCountry "ESP"]
[SourceTitle "playchess.com"]
[Source "ChessBase"]
[SourceQuality "1"]
[TimeControl "5400+30"]

1. c4 {[%emt 0:00:00]} c6 {[%emt 0:00:00]} 2. Nf3 {[%emt 0:02:41]} Nf6 {[%emt 0:00:00]} 3. g3 {[%emt 0:00:26]} d5 {[%emt 0:00:17]} 4. Bg2 {[%emt 0:01:54]} dxc4 {[%emt 0:00:11]} 5. a4 {[%emt 0:00:52]} Na6 {[%emt 0:00:46]} 6. Na3 {[%emt 0:02:15]} Qd5 7. O-O e5 {[%emt 0:02:49]} 8. e4 {[%emt 0:19:42]} Nxe4 {[%emt 0:07:49]} 9. Qe2 {[%emt 0:01:32]} Qd3 {[%emt 0:07:05]} 10. Re1 {[%emt 0:00:13]} Qxe2 {[%emt 0:07:11]} 11. Rxe2 {[%emt 0:00:09]} Nd6 {[%emt 0:00:11]} 12. Nxe5 {[%emt 0:00:55]} Kd8 {[%emt 0:08:54]} 13. Naxc4 {[%emt 0:03:13]} Be6 {[%emt 0:03:10]} 14. d3 {[%emt 0:20:07]} Nc5 15. Bf4 {[%emt 0:00:12]} Nb3 {[%emt 0:18:46]} 16. Rae1 {[%emt 0:00:07]} Nd4 {[%emt 0:00:48]} 17. Rd2 N6f5 18. g4 {[%emt 0:05:03]} Nh4 {[%emt 0:06:28]} 19. Bg5+ {[%emt 0:00:12]} Be7 {[%emt 0:00:03]} 20. Nxf7+ {[%emt 0:00:18]} Kc7 {[%emt 0:03:18]} 21. Bf4+ {[%emt 0:07:00]} Kc8 {[%emt 0:03:17]} 22. Nxh8 {[%emt 0:00:33]} Nhf3+ {[%emt 0:00:54]} 23. Bxf3 {[%emt 0:01:09]} Nxf3+ {[%emt 0:00:01]} 24. Kf1 {[%emt 0:00:14]} Nxe1 {[%emt 0:00:30]} 25. Kxe1 {[%emt 0:01:27]} Bb4 {[%emt 0:00:42]} 26. Ne5 {[%emt 0:00:10]} Kc7 {[%emt 0:04:38]} 27. Nhf7 {[%emt 0:02:53]} Kb6 28. Ng5 {[%emt 0:01:25]} Bg8 {[%emt 0:08:39]} 29. Ne4 {[%emt 0:01:00]} Bxd2+ {[%emt 0:00:20]} 30. Kxd2 {[%emt 0:00:16]} Rd8 {[%emt 0:01:34]} 31. b4 {[%emt 0:01:24]} Bd5 {[%emt 0:02:22]} 32. Kc3 {[%emt 0:04:58]} a6 {[%emt 0:00:24]} 33. Nc4+ {[%emt 0:00:51]} Ka7 {[%emt 0:00:38]} 34. a5 {[%emt 0:00:15]} Be6 {[%emt 0:02:11]} 35. h3 {[%emt 0:00:47]} Rf8 {[%emt 0:00:20]} 36. Be3+ {[%emt 0:00:26]} Kb8 {[%emt 0:00:14]} 37. Nc5 {[%emt 0:01:15]} Bc8 {[%emt 0:00:01]} 38. Bd4 {[%emt 0:02:26]} 1-0

[Event "84th ESP-ch 2019"]
[Site "Marbella"]
[Date "2019.11.23"]
[Round "8.16"]
[White "Rahal, Michael A"]
[Black "Garza Marco, Sergio"]
[Result "0-1"]
[ECO "C03"]
[WhiteElo "2309"]
[BlackElo "2400"]
[Annotator "ChessBase"]
[PlyCount "70"]
[EventDate "2019.11.16"]
[EventType "swiss"]
[EventCountry "ESP"]
[SourceTitle "playchess.com"]
[Source "ChessBase"]
[SourceQuality "1"]
[TimeControl "5400+30"]

1. e4 {[%emt 0:00:09]} e6 {[%emt 0:00:00]} 2. d4 {[%emt 0:00:30]} d5 {[%emt 0:00:00]} 3. Nd2 {[%emt 0:01:06]} Be7 {[%emt 0:00:00]} 4. exd5 {[%emt 0:06:43]} exd5 {[%emt 0:00:00]} 5. Bd3 {[%emt 0:00:08]} Nf6 {[%emt 0:00:31]} 6. h3 {[%emt 0:00:55]} O-O {[%emt 0:01:20]} 7. Ne2 {[%emt 0:01:37]} b6 {[%emt 0:03:49]} 8. O-O {[%emt 0:02:17]} c5 {[%emt 0:05:47]} 9. dxc5 {[%emt 0:06:52]} bxc5 {[%emt 0:00:09]} 10. Ng3 {[%emt 0:00:46]} Re8 {[%emt 0:06:52]} 11. Nf3 {[%emt 0:04:54]} Nc6 {[%emt 0:02:48]} 12. c3 {[%emt 0:01:08]} Rb8 {[%emt 0:00:49]} 13. b3 {[%emt 0:05:19]} Bf8 {[%emt 0:02:03]} 14. Bf4 {[%emt 0:01:44]} Rb7 {[%emt 0:00:30]} 15. Qc2 {[%emt 0:05:35]} g6 {[%emt 0:01:46]} 16. Rfe1 {[%emt 0:01:23]} Rbe7 {[%emt 0:02:31]} 17. Rxe7 {[%emt 0:00:18]} Rxe7 {[%emt 0:00:24]} 18. Bg5 {[%emt 0:01:53]} Bg7 {[%emt 0:01:03]} 19. Qd2 {[%emt 0:03:20]} Qa5 {[%emt 0:05:50]} 20. Rc1 {[%emt 0:04:33]} Bb7 {[%emt 0:06:18]} 21. c4 {[%emt 0:07:44]} Qxd2 {[%emt 0:00:50]} 22. Bxd2 {[%emt 0:05:49]} d4 {[%emt 0:04:50]} 23. Re1 {[%emt 0:01:44]} Rxe1+ {[%emt 0:02:54]} 24. Bxe1 {[%emt 0:02:33]} Nd8 {[%emt 0:04:12]} 25. Ng5 {[%emt 0:04:18]} Bf8 {[%emt 0:02:31]} 26. N5e4 {[%emt 0:03:31]} Nd7 {[%emt 0:00:27]} 27. f4 {[%emt 0:03:37]} f5 {[%emt 0:00:28]} 28. Nf2 {[%emt 0:03:34]} Nf6 {[%emt 0:00:40]} 29. Ne2 {[%emt 0:00:40]} Ne4 {[%emt 0:00:52]} 30. b4 {[%emt 0:01:36]} cxb4 {[%emt 0:01:37]} 31. Bxe4 {[%emt 0:01:16]} fxe4 {[%emt 0:00:09]} 32. Nxd4 {[%emt 0:00:31]} a5 {[%emt 0:00:52]} 33. Nd1 {[%emt 0:01:41]} a4 {[%emt 0:00:55]} 34. Nb2 {[%emt 0:01:27]} Bg7 {[%emt 0:00:37]} 35. Bf2 {[%emt 0:00:30]} Nc6 {[%emt 0:00:56]} 0-1

[Event "84th ESP-ch 2019"]
[Site "Marbella"]
[Date "2019.11.23"]
[Round "8.17"]
[White "Merario Alarcon, Andres"]
[Black "Perera Borrego, Maria Adela"]
[Result "1-0"]
[ECO "E32"]
[WhiteElo "2394"]
[BlackElo "2201"]
[Annotator "ChessBase"]
[PlyCount "91"]
[EventDate "2019.11.16"]
[EventType "swiss"]
[EventCountry "ESP"]
[SourceTitle "playchess.com"]
[Source "ChessBase"]
[SourceQuality "1"]
[TimeControl "5400+30"]

1. d4 {[%emt 0:00:00]} Nf6 {[%emt 0:00:00]} 2. c4 {[%emt 0:00:00]} e6 {[%emt 0:00:03]} 3. Nc3 {[%emt 0:00:00]} Bb4 {[%emt 0:00:09]} 4. Qc2 {[%emt 0:00:12]} O-O {[%emt 0:00:24]} 5. e4 {[%emt 0:00:31]} d6 {[%emt 0:00:25]} 6. a3 {[%emt 0:00:14]} Bxc3+ {[%emt 0:00:19]} 7. bxc3 {[%emt 0:00:07]} e5 {[%emt 0:00:44]} 8. Bd3 {[%emt 0:00:09]} Nc6 {[%emt 0:00:34]} 9. Ne2 {[%emt 0:00:35]} Nd7 {[%emt 0:01:36]} 10. O-O {[%emt 0:00:35]} b6 {[%emt 0:00:24]} 11. f4 {[%emt 0:06:18]} Ba6 {[%emt 0:01:44]} 12. Ng3 {[%emt 0:07:53]} Na5 {[%emt 0:02:52]} 13. fxe5 {[%emt 0:02:02]} dxe5 {[%emt 0:01:16]} 14. Nf5 {[%emt 0:00:32]} Bxc4 {[%emt 0:03:37]} 15. Bxc4 {[%emt 0:00:12]} Nxc4 {[%emt 0:00:06]} 16. Bh6 {[%emt 0:00:11]} Nd6 {[%emt 0:26:08]} 17. Bxg7 {[%emt 0:15:26]} Re8 {[%emt 0:26:34]} 18. Bh6 {[%emt 0:02:45]} Re6 {[%emt 0:03:03]} 19. d5 {[%emt 0:09:39]} Rg6 {[%emt 0:00:37]} 20. Bd2 {[%emt 0:01:53]} Nc5 {[%emt 0:02:25]} 21. Rae1 {[%emt 0:00:40]} Qd7 {[%emt 0:01:09]} 22. Rf3 {[%emt 0:07:00]} Rf8 {[%emt 0:09:44]} 23. c4 {[%emt 0:03:35]} a5 {[%emt 0:00:53]} 24. h3 {[%emt 0:08:23]} Kh8 {[%emt 0:03:54]} 25. Nh4 {[%emt 0:04:26]} Rgg8 {[%emt 0:00:39]} 26. Be3 {[%emt 0:08:20]} f6 {[%emt 0:05:01]} 27. Bxc5 {[%emt 0:00:47]} bxc5 {[%emt 0:00:01]} 28. Ref1 {[%emt 0:00:41]} Rf7 {[%emt 0:05:11]} 29. Kh2 {[%emt 0:04:37]} Rgf8 {[%emt 0:01:14]} 30. g4 {[%emt 0:01:06]} Qc8 {[%emt 0:01:34]} 31. Nf5 {[%emt 0:00:57]} Ne8 {[%emt 0:01:55]} 32. Qc3 {[%emt 0:03:09]} Qa6 {[%emt 0:00:12]} 33. g5 {[%emt 0:03:30]} fxg5 {[%emt 0:00:39]} 34. Qxe5+ {[%emt 0:01:05]} Qf6 {[%emt 0:01:03]} 35. Qg3 {[%emt 0:02:40]} Qg6 {[%emt 0:00:46]} 36. Qf2 {[%emt 0:01:55]} Nd6 {[%emt 0:00:16]} 37. Qb2+ {[%emt 0:00:57]} Qf6 {[%emt 0:00:40]} 38. e5 {[%emt 0:01:52]} Nxc4 {[%emt 0:00:02]} 39. exf6 {[%emt 0:00:03]} Nxb2 {[%emt 0:00:03]} 40. Nh6 {[%emt 0:00:15]} Rd7 {[%emt 0:00:27]} 41. Rf5 {[%emt 0:01:15]} Nc4 {[%emt 0:01:34]} 42. Rxg5 {[%emt 0:00:14]} Nd2 {[%emt 0:00:11]} 43. Rf4 {[%emt 0:00:30]} c4 {[%emt 0:00:04]} 44. Kg2 {[%emt 0:00:57]} Rdd8 {[%emt 0:01:02]} 45. Kh1 {[%emt 0:00:27]} c3 {[%emt 0:00:23]} 46. Rg8+ {[%emt 0:00:07]} 1-0

[Event "84th ESP-ch 2019"]
[Site "Marbella"]
[Date "2019.11.23"]
[Round "8.18"]
[White "Hernando Rodrigo, Julio Antonio"]
[Black "Suarez Uriel, Adrian"]
[Result "1/2-1/2"]
[ECO "D85"]
[WhiteElo "2271"]
[BlackElo "2389"]
[Annotator "ChessBase"]
[PlyCount "128"]
[EventDate "2019.11.16"]
[EventType "swiss"]
[EventCountry "ESP"]
[SourceTitle "playchess.com"]
[Source "ChessBase"]
[SourceQuality "1"]
[TimeControl "5400+30"]

1. d4 {[%emt 0:00:00]} Nf6 {[%emt 0:00:00]} 2. c4 {[%emt 0:00:00]} g6 {[%emt 0:00:00]} 3. Nc3 {[%emt 0:00:00]} d5 {[%emt 0:00:00]} 4. cxd5 {[%emt 0:00:10]} Nxd5 {[%emt 0:00:00]} 5. e4 {[%emt 0:00:04]} Nxc3 {[%emt 0:00:02]} 6. bxc3 {[%emt 0:00:05]} Bg7 {[%emt 0:00:06]} 7. Nf3 {[%emt 0:00:08]} c5 {[%emt 0:00:06]} 8. Rb1 {[%emt 0:00:09]} O-O {[%emt 0:00:09]} 9. Be2 {[%emt 0:00:06]} Nc6 {[%emt 0:00:06]} 10. d5 {[%emt 0:00:14]} Ne5 {[%emt 0:00:03]} 11. Nxe5 {[%emt 0:00:13]} Bxe5 {[%emt 0:00:04]} 12. Qd2 {[%emt 0:00:09]} e6 {[%emt 0:00:03]} 13. f4 {[%emt 0:00:28]} Bc7 {[%emt 0:00:04]} 14. O-O {[%emt 0:00:18]} exd5 {[%emt 0:00:05]} 15. exd5 {[%emt 0:00:06]} Ba5 {[%emt 0:00:02]} 16. d6 {[%emt 0:00:27]} b6 {[%emt 0:06:48]} 17. Bf3 {[%emt 0:06:00]} Bf5 {[%emt 0:07:46]} 18. Bb2 {[%emt 0:10:42]} Rc8 {[%emt 0:20:42]} 19. Rbe1 {[%emt 0:08:11]} Qf6 {[%emt 0:02:37]} 20. g4 {[%emt 0:03:56]} Be6 {[%emt 0:01:08]} 21. f5 {[%emt 0:06:43]} gxf5 {[%emt 0:04:16]} 22. gxf5 {[%emt 0:01:25]} Bc4 {[%emt 0:00:33]} 23. Re4 {[%emt 0:05:15]} b5 {[%emt 0:03:14]} 24. Be2 {[%emt 0:00:50]} Kh8 {[%emt 0:06:40]} 25. Bxc4 {[%emt 0:01:26]} Rg8+ {[%emt 0:00:36]} 26. Kh1 {[%emt 0:00:15]} bxc4 {[%emt 0:00:04]} 27. Rxc4 {[%emt 0:13:35]} Rcd8 {[%emt 0:01:52]} 28. Rxc5 {[%emt 0:01:00]} Rxd6 {[%emt 0:00:03]} 29. Rd5 {[%emt 0:17:57]} Rb6 {[%emt 0:16:49]} 30. Ba1 {[%emt 0:02:41]} Qc6 {[%emt 0:08:42]} 31. c4+ {[%emt 0:00:14]} f6 {[%emt 0:00:01]} 32. Qd4 {[%emt 0:15:47]} Bb4 {[%emt 0:01:10]} 33. c5 {[%emt 0:05:14]} Ra6 {[%emt 0:00:10]} 34. Rd1 {[%emt 0:00:10]} Ba5 {[%emt 0:00:39]} 35. Qe4 {[%emt 0:01:37]} Bc7 {[%emt 0:04:40]} 36. Rg1 {[%emt 0:00:26]} Rxg1+ {[%emt 0:03:09]} 37. Kxg1 {[%emt 0:00:02]} Qa8 {[%emt 0:00:27]} 38. Qd3 {[%emt 0:01:45]} Qg8+ {[%emt 0:01:15]} 39. Kf1 {[%emt 0:00:34]} Rc6 {[%emt 0:00:06]} 40. Rd6 {[%emt 0:00:21]} Rxd6 {[%emt 0:00:55]} 41. cxd6 {[%emt 0:00:03]} Bd8 {[%emt 0:00:05]} 42. Qe2 {[%emt 0:00:32]} Qd5 {[%emt 0:03:49]} 43. Qe8+ {[%emt 0:00:36]} Kg7 {[%emt 0:00:02]} 44. Qxd8 {[%emt 0:00:08]} Qf3+ {[%emt 0:02:22]} 45. Ke1 {[%emt 0:00:01]} Qe3+ {[%emt 0:00:03]} 46. Kd1 {[%emt 0:00:06]} Qd3+ {[%emt 0:00:02]} 47. Kc1 {[%emt 0:00:05]} Qc4+ {[%emt 0:00:12]} 48. Kd2 {[%emt 0:00:47]} Qxa2+ {[%emt 0:00:06]} 49. Kd3 {[%emt 0:00:10]} Qa6+ {[%emt 0:01:44]} 50. Ke4 {[%emt 0:00:46]} Qe2+ {[%emt 0:03:29]} 51. Kd5 {[%emt 0:00:23]} Qb5+ {[%emt 0:00:37]} 52. Ke6 {[%emt 0:01:00]} Qc4+ {[%emt 0:00:06]} 53. Kd7 {[%emt 0:00:12]} Qb5+ {[%emt 0:00:03]} 54. Kc8 {[%emt 0:01:06]} Qa6+ {[%emt 0:00:03]} 55. Kb8 {[%emt 0:00:17]} Qb5+ {[%emt 0:00:15]} 56. Kxa7 {[%emt 0:01:10]} Qa4+ {[%emt 0:00:03]} 57. Kb7 {[%emt 0:00:32]} Qe4+ {[%emt 0:00:03]} 58. Kb6 {[%emt 0:01:36]} Qb4+ {[%emt 0:00:10]} 59. Ka6 {[%emt 0:00:16]} Qc4+ {[%emt 0:00:13]} 60. Kb7 {[%emt 0:00:11]} Qe4+ {[%emt 0:00:10]} 61. Kc8 {[%emt 0:01:01]} Qa8+ {[%emt 0:00:11]} 62. Kc7 {[%emt 0:00:06]} Qa5+ {[%emt 0:00:44]} 63. Kd7 {[%emt 0:00:10]} Qa4+ {[%emt 0:00:31]} 64. Kc8 {[%emt 0:00:59]} Qa8+ {[%emt 0:00:04]} 1/2-1/2